bitfinex/quotes_ETHUSD_20220305
["timestamp","ask_amount","ask_price","bid_price","bid_amount"]
[1646522017379,0.00149803,2668.4,2667.4,3.87434]
[1646522017578,0.00296938,2668.4,2667.4,3.87434]
[1646522017776,0.00147135,2668.4,2667.4,3.87434]
[1646522018178,0.00149803,2668.3,2667.4,3.87434]
[1646522019181,1.21145804,2668.4,2667.4,4.92581853]
[1646522019379,0.00343991,2668.0,2667.4,4.92925916]
[1646522020178,0.00147135,2668.4,2667.4,4.92581853]
[1646522020430,0.00355094,2667.9,2667.4,4.92937016]
[1646522021431,0.00147135,2668.4,2667.4,4.92581853]
[1646522021632,0.00355091,2667.9,2667.4,4.92937013]
[1646522022631,0.00147135,2668.4,2667.4,4.92581853]
[1646522022833,0.00355091,2667.9,2667.4,4.92937013]
[1646522023533,0.00355091,2667.9,2667.4,3.92937013]
[1646522023934,1.53624643,2668.3,2667.4,3.92937013]
[1646522023935,1.53624643,2668.3,2667.4,3.92169053]
[1646522024177,0.00344438,2667.9,2667.4,3.92513558]
[1646522024877,0.00344438,2667.9,2667.4,3.9210076]
[1646522025078,1.53624643,2668.3,2667.4,3.91756255]
[1646522025279,0.00344438,2667.9,2667.4,3.9210076]
[1646522026383,1.53624643,2668.3,2667.4,3.91756255]
[1646522026586,0.00344438,2667.9,2667.4,3.9210076]
[1646522027382,1.53624643,2668.3,2667.4,2.86608402]
[1646522027827,0.00330843,2667.9,2667.4,2.8693931]
[1646522028635,1.53624643,2668.3,2667.4,1.86608402]
[1646522028835,0.00330843,2667.9,2667.4,2.8693931]
[1646522029037,0.00330843,2667.9,2667.4,1.8693931]
[1646522029238,0.00330843,2667.9,2667.4,2.8693931]
[1646522029441,1.48153182,2667.9,2667.4,0.00330908]
[1646522029646,14.97,2667.8,2667.4,0.00330908]
[1646522029837,14.97,2667.8,2667.1,1.0]
[1646522029838,13.00658847,2667.7,2667.1,1.0]
[1646522030037,3.5,2667.6,2667.1,1.0]
[1646522030239,3.5,2667.6,2667.4,0.00330908]
[1646522031038,1.53667583,2667.5,2667.1,1.0]
[1646522031338,3.5,2667.4,2666.6,2.00298043]
[1646522031607,3.5,2667.4,2666.6,1.81558043]
[1646522032201,1.49980198,2667.6,2666.6,1.81558043]
[1646522032202,3.8745,2667.6,2666.6,1.81558043]
[1646522032397,1.2095,2667.7,2666.9,0.00331856]
[1646522032596,1.2095,2667.7,2667.0,0.93741]
[1646522033397,1.2095,2667.7,2667.1,0.8750375]
[1646522033797,1.2095,2667.7,2667.2,0.00331833]
[1646522034601,1.2095,2667.7,2667.1,0.8750375]
[1646522035002,1.2095,2667.7,2667.3,0.00331506]
[1646522035835,1.2095,2667.7,2667.1,0.8750375]
[1646522036031,1.2095,2667.7,2667.4,0.93728]
[1646522036234,0.00331431,2667.9,2667.4,0.94059502]
[1646522037034,2.77621646,2668.2,2667.4,0.93728]
[1646522037439,0.0033144,2667.9,2667.4,0.94059505]
[1646522038236,1.53633677,2668.1,2667.4,0.93728]
[1646522038435,0.00331722,2667.9,2667.4,0.94059787]
[1646522039475,2.77621646,2668.2,2667.4,0.93728]
[1646522039675,0.00331722,2667.9,2667.4,0.94059787]
[1646522040281,0.00331722,2667.9,2667.4,0.00331787]
[1646522040680,1.53640396,2668.1,2667.1,0.8750375]
[1646522041082,0.00331722,2667.9,2667.4,0.00331787]
[1646522041881,1.53640396,2668.1,2667.1,0.8750375]
[1646522042082,1.53640396,2668.1,2667.4,0.00331767]
[1646522042083,0.00331703,2667.9,2667.4,0.00331767]
[1646522043130,1.53640396,2668.1,2667.1,1.8124075]
[1646522043330,0.00331703,2667.9,2667.4,0.00331767]
[1646522044332,1.53640396,2668.1,2667.1,1.8124075]
[1646522044533,0.00331703,2667.9,2667.4,0.00331767]
[1646522045535,1.53640396,2668.1,2667.1,1.8124075]
[1646522045733,0.00330387,2667.9,2667.4,0.00330452]
[1646522046586,1.53640396,2668.1,2667.1,0.8750375]
[1646522046587,3.8745,2668.0,2667.1,0.8750375]
[1646522046781,1.53640396,2667.9,2667.1,0.8750375]
[1646522046976,1.53640396,2667.9,2667.4,0.00330452]
[1646522046977,1.53970783,2667.9,2667.4,0.00330452]
[1646522047176,2.74010783,2667.9,2667.4,0.00330452]
[1646522047377,1.20370387,2667.9,2667.4,0.00330452]
[1646522047778,1.2004,2667.9,2666.9,0.1874]
[1646522047987,1.03870391,2667.7,2666.9,0.1874]
[1646522048182,1.03870391,2667.7,2667.4,0.00330452]
[1646522048483,2.51607209,2667.7,2667.4,0.00330452]
[1646522048983,2.51607209,2667.7,2666.9,0.1874]
[1646522049183,3.5,2667.6,2666.9,0.1874]
[1646522049383,2.51607209,2667.7,2667.4,0.00331582]
[1646522050082,3.5,2667.6,2667.4,0.00331582]
[1646522050330,13.98607209,2667.7,2666.9,0.1874]
[1646522050536,3.5,2667.6,2667.4,0.00331582]
[1646522050735,2.51607209,2667.7,2667.4,0.00331582]
[1646522051031,13.98607209,2667.7,2667.4,0.00331582]
[1646522051236,3.5,2667.6,2667.4,0.00331582]
[1646522051436,1.53668469,2667.5,2667.4,0.00331582]
[1646522051633,1.53668469,2667.5,2666.9,0.1874]
[1646522051634,5.03668469,2667.5,2666.9,0.1874]
[1646522051832,3.5,2667.5,2667.4,0.00331582]
[1646522052032,5.03672707,2667.5,2667.4,0.00331582]
[1646522052233,3.5,2667.5,2667.4,0.00331582]
[1646522052432,5.03674144,2667.5,2667.4,0.00331582]
[1646522052632,3.5,2667.5,2667.4,0.00331582]
[1646522052833,3.5,2667.5,2666.8,1.03926962]
[1646522053033,3.5,2667.5,2667.3,0.00325328]
[1646522053935,3.8745,2667.5,2666.5,0.93759]
[1646522054179,3.5,2667.5,2667.3,0.00325331]
[1646522055182,3.5,2667.5,2666.8,0.9365871]
[1646522055385,3.5,2667.5,2667.3,0.00325331]
[1646522056387,3.5,2667.5,2666.8,0.9365871]
[1646522056586,3.5,2667.5,2667.3,0.0031493]
[1646522057587,3.8745,2667.5,2666.5,0.93759]
[1646522057827,3.5,2667.5,2667.3,0.0031493]
[1646522058632,3.8745,2667.5,2666.5,0.93759]
[1646522058833,3.5,2667.5,2666.7,0.97437289]
[1646522059031,3.5,2667.5,2667.3,0.0031493]
[1646522059834,3.5,2667.5,2666.7,0.97437289]
[1646522060231,3.5,2667.5,2667.3,0.0031173]
[1646522061038,3.5,2667.5,2666.7,0.97437289]
[1646522061435,3.5,2667.5,2667.3,0.0031173]
[1646522062284,3.5,2667.5,2666.7,0.97437289]
[1646522062484,3.5,2667.5,2667.3,0.0031173]
[1646522063484,3.5,2667.5,2666.7,0.97437289]
[1646522063688,3.5,2667.5,2667.3,0.00312067]
[1646522063884,16.1885,2667.6,2667.3,0.00312067]
[1646522064685,16.563,2667.6,2666.7,0.97437289]
[1646522064884,16.1885,2667.6,2667.3,0.00312064]
[1646522065937,16.563,2667.6,2666.7,0.97437289]
[1646522066137,16.1885,2667.6,2667.3,0.00312064]
[1646522067037,16.563,2667.6,2666.7,0.97437289]
[1646522067539,16.1885,2667.6,2667.3,0.00312021]
[1646522067739,1.2185,2667.6,2667.3,0.00312021]
[1646522068144,0.00311948,2667.9,2667.3,0.00312021]
[1646522068342,1.17957135,2668.1,2667.2,3.8745]
[1646522068543,1.17957135,2668.1,2667.3,0.9145]
[1646522068742,0.00160583,2667.9,2667.3,0.91762021]
[1646522068947,0.00160583,2667.9,2667.5,1.20672654]
[1646522069587,0.00147135,2668.4,2667.6,3.8745]
[1646522069787,0.00147135,2668.4,2667.7,0.00231715]
[1646522069984,0.00147135,2668.6,2667.9,0.3745]
[1646522070185,1.53757933,2668.8,2668.0,0.54]
[1646522070392,1.57863733,2668.8,2668.2,0.93696]
[1646522070588,1.18241101,2668.4,2668.2,0.93696]
[1646522070791,1.18241101,2668.4,2667.7,2.87628715]
[1646522070989,1.18241101,2668.4,2667.7,1.00231715]
[1646522071191,1.18241101,2668.4,2667.7,0.00231715]
[1646522072191,0.0031207,2668.2,2667.7,0.00231715]
[1646522073234,0.00147135,2668.3,2667.7,0.00231715]
[1646522073436,0.00312076,2668.1,2667.7,0.00231715]
[1646522074241,0.00147135,2668.3,2667.7,0.00231715]
[1646522074438,1.18241101,2668.4,2667.7,0.00231715]
[1646522074644,0.00338699,2668.1,2667.7,0.00231715]
[1646522075538,0.00147135,2668.3,2667.7,0.00231715]
[1646522075739,0.00338699,2668.1,2667.7,0.00231715]
[1646522076787,0.00147135,2668.3,2667.7,0.00231715]
[1646522076984,0.00338699,2668.1,2667.7,0.00231715]
[1646522077985,0.00147135,2668.3,2667.7,0.00231715]
[1646522078188,0.00349223,2668.1,2667.7,0.00231715]
[1646522080332,0.00147135,2668.3,2667.7,0.00231715]
[1646522080534,0.00349223,2668.1,2667.7,0.00231715]
[1646522081143,0.00349223,2668.1,2667.6,0.83952715]
[1646522081334,0.00349223,2668.1,2667.7,3.5]
[1646522081535,0.00147135,2668.6,2667.7,3.5]
[1646522081734,0.00147135,2668.6,2667.7,4.5]
[1646522081939,0.00354826,2668.1,2667.9,0.90088372]
[1646522082736,0.00147135,2668.6,2668.0,0.93704]
[1646522082937,1.2015,2668.7,2668.0,0.93704]
[1646522083136,0.00354823,2668.1,2668.0,0.93704]
[1646522083937,0.00147135,2668.6,2668.0,0.93704]
[1646522084181,0.00354819,2668.2,2668.0,0.93704]
[1646522085183,0.00147135,2668.6,2668.0,0.93704]
[1646522085385,0.00342841,2668.2,2667.7,1.0]
[1646522085884,0.00342841,2668.2,2667.5,6.3776094]
[1646522086285,1.19361745,2668.4,2667.5,6.37418]
[1646522086485,0.00147135,2668.3,2667.5,6.37418]
[1646522086688,0.00342851,2668.1,2667.5,2.87760931]
[1646522087189,0.00342851,2668.1,2667.5,1.87760931]
[1646522087384,0.00342851,2668.1,2667.5,2.87760931]
[1646522087585,0.00147135,2668.3,2667.5,1.87418]
[1646522087834,0.00342844,2668.1,2667.5,2.87760922]
[1646522088032,0.00342844,2668.1,2667.5,5.37760922]
[1646522088236,0.00342844,2668.1,2667.5,6.37760922]
[1646522088637,0.00147135,2668.6,2667.5,2.87418]
[1646522088840,0.00147135,2668.6,2667.5,5.37418]
[1646522089041,0.00147135,2668.6,2667.5,2.87748734]
[1646522089042,0.00330659,2668.1,2667.5,2.87748734]
[1646522089238,0.00330659,2668.1,2667.5,1.87748734]
[1646522089437,0.00330659,2668.1,2667.5,2.87748734]
[1646522089843,0.00147135,2668.4,2667.5,2.87418]
[1646522090338,0.00330659,2668.1,2667.5,2.87748734]
[1646522090739,0.00330659,2668.1,2667.5,6.37748734]
[1646522090938,0.00330659,2668.1,2667.5,2.87748734]
[1646522091139,0.00147135,2668.4,2667.5,2.87418]
[1646522091338,0.00330659,2668.1,2667.5,6.37748734]
[1646522091781,0.00330659,2668.1,2667.5,2.87748734]
[1646522091979,0.00330659,2668.1,2667.5,6.37748734]
[1646522092181,0.00330659,2668.1,2667.5,1.87748734]
[1646522092386,0.00147135,2668.4,2667.5,2.87418]
[1646522092581,0.00331482,2668.1,2667.5,5.37749557]
[1646522092781,0.00331482,2668.1,2667.5,2.87749557]
[1646522092980,0.00331482,2668.1,2667.5,6.37749557]
[1646522093180,0.00331482,2668.1,2667.5,5.37749557]
[1646522093381,0.00331482,2668.1,2667.5,6.37749557]
[1646522093581,0.00147135,2668.6,2667.5,6.37418]
[1646522093781,0.00331482,2668.1,2667.5,6.37749557]
[1646522094180,0.00331482,2668.1,2667.5,2.87749557]
[1646522094383,0.00331482,2668.1,2667.5,6.37749557]
[1646522094584,0.00331482,2668.1,2667.5,5.37749557]
[1646522094783,0.00147135,2668.6,2667.5,6.37418]
[1646522094988,0.00331482,2668.1,2667.5,6.37749557]
[1646522095841,15.34386546,2668.6,2667.4,1.0]
[1646522096039,15.34386546,2668.6,2666.9,0.93746]
[1646522096040,11.8445,2668.4,2666.9,0.93746]
[1646522096238,0.00331426,2668.1,2667.5,0.00331502]
[1646522096438,11.47,2668.0,2667.5,0.00331502]
[1646522096638,5.03975806,2668.1,2667.5,0.00331502]
[1646522096639,11.47,2667.8,2667.5,0.00331502]
[1646522096842,3.5,2667.7,2667.5,0.00331502]
[1646522097139,3.5,2667.7,2666.5,2.481]
[1646522097140,1.37332926,2667.6,2666.5,2.481]
[1646522097546,0.99882926,2667.6,2667.5,0.00331492]
[1646522098038,15.96882926,2667.6,2667.5,0.00331492]
[1646522098441,1.11172439,2667.1,2666.3,1.00096]
[1646522099587,1.11172439,2667.1,2666.3,1.0]
[1646522099785,1.11172439,2667.1,2666.6,0.0033129]
[1646522100788,1.11172439,2667.1,2666.3,1.00096]
[1646522100988,1.11172439,2667.1,2666.7,0.0033128]
[1646522101990,1.11172439,2667.1,2666.3,0.00096]
[1646522102191,1.11172439,2667.1,2666.8,0.00331277]
[1646522103231,1.11172439,2667.1,2666.3,0.00096]
[1646522103430,1.11172439,2667.1,2666.8,0.00331276]
[1646522104233,3.5,2667.0,2666.8,0.00331276]
[1646522104431,3.49909151,2667.0,2666.7,0.06596639]
[1646522104633,3.49909151,2667.0,2666.8,0.00331276]
[1646522105636,3.49909151,2667.0,2666.7,0.06596639]
[1646522105837,3.5,2667.0,2666.8,0.00331279]
[1646522106681,1.11172439,2667.1,2666.7,0.06596639]
[1646522107085,1.11172439,2667.1,2666.8,0.00331279]
[1646522108087,1.11172439,2667.1,2666.8,0.00331275]
[1646522109084,1.11172439,2667.1,2667.0,0.31483882]
[1646522111140,4.61172439,2667.1,2667.0,0.31483882]
[1646522112340,1.11172439,2667.1,2667.0,0.31483882]
[1646522112841,16.08172439,2667.1,2667.0,0.31483882]
[1646522113042,4.61172439,2667.1,2667.0,0.31483882]
[1646522113540,4.61172439,2667.1,2667.0,0.34967648]
[1646522113941,1.11172439,2667.1,2667.0,0.34967648]
[1646522114191,1.11172439,2667.1,2667.0,0.20154012]
[1646522114392,1.11172439,2667.1,2667.0,0.34967648]
[1646522115091,12.58172439,2667.1,2667.0,0.34967648]
[1646522115292,16.08172439,2667.1,2667.0,0.34967648]
[1646522115494,4.61172439,2667.1,2667.0,0.34967648]
[1646522116097,16.08172439,2667.1,2667.0,0.34967648]
[1646522116296,16.08172439,2667.1,2667.0,0.34350648]
[1646522117100,16.08172439,2667.1,2667.0,0.33731668]
[1646522117302,16.08172439,2667.1,2666.1,0.00096]
[1646522117303,1.02188813,2666.8,2666.1,0.00096]
[1646522117602,1.02188813,2666.8,2666.0,0.01325536]
[1646522117603,18.8845,2666.7,2665.8,0.00096]
[1646522117839,0.18981715,2666.6,2665.6,0.00096]
[1646522118037,12.01,2666.5,2666.0,0.01325536]
[1646522118239,11.47,2666.1,2666.0,0.01325536]
[1646522118445,17.182,2666.1,2666.0,0.01325536]
[1646522118841,0.3745,2666.0,2664.8,0.00096]
[1646522119041,11.8445,2665.8,2664.8,0.00096]
[1646522119247,15.3445,2665.7,2664.6,0.00096]
[1646522120043,1.04253818,2665.2,2664.6,0.00096]
[1646522120241,21.5887,2665.7,2664.4,0.00096]
[1646522120642,20.5887,2665.7,2664.4,0.00096]
[1646522121049,9.1187,2665.7,2664.4,0.00096]
[1646522121245,0.92175521,2665.5,2664.4,0.00096]
[1646522121443,0.92175521,2665.5,2664.9,0.0035481]
[1646522122283,3.5,2665.4,2664.5,0.01419453]
[1646522122484,1.04232735,2665.1,2664.4,0.00096]
[1646522122685,1.04232735,2665.1,2664.7,0.01419409]
[1646522122883,4.6502,2665.4,2664.7,0.01419409]
[1646522123083,1.1502,2665.4,2664.7,0.01419409]
[1646522123485,3.5,2665.3,2664.4,0.00096]
[1646522123887,1.1502,2665.4,2664.9,0.0035481]
[1646522124287,3.5,2665.3,2664.9,0.0035481]
[1646522124787,3.5,2665.3,2664.4,0.00096]
[1646522124989,1.20628892,2665.0,2664.6,0.01419438]
[1646522126041,1.20628892,2665.0,2664.4,0.00096]
[1646522126244,1.20628892,2665.0,2664.7,0.00344183]
[1646522127241,1.20628892,2665.0,2664.4,0.00096]
[1646522127441,1.20628892,2665.0,2664.7,0.00344179]
[1646522128246,1.1502,2665.4,2664.7,0.00344179]
[1646522128945,0.01592802,2665.0,2664.7,0.00344179]
[1646522129488,0.01592802,2665.0,2664.4,0.00096]
[1646522129890,0.01592802,2665.0,2664.7,0.00331969]
[1646522130690,0.01592802,2665.0,2664.4,0.00096]
[1646522131091,0.01592802,2665.0,2664.7,0.00331969]
[1646522131891,0.01592802,2665.0,2664.4,0.00096]
[1646522132292,0.01592802,2665.0,2664.7,0.00331969]
[1646522133235,0.01592802,2665.0,2664.4,0.00096]
[1646522133532,0.01592802,2665.0,2664.7,0.00331388]
[1646522134134,0.02439602,2665.0,2664.7,0.00331388]
[1646522134332,0.02439602,2665.0,2664.4,0.00096]
[1646522134734,0.02439602,2665.0,2664.7,0.00331388]
[1646522135543,0.02439602,2665.0,2664.4,0.00096]
[1646522135742,0.02439602,2665.0,2664.7,0.00331388]
[1646522136783,0.02439602,2665.0,2664.4,0.00096]
[1646522136983,0.02439602,2665.0,2664.7,0.0033161]
[1646522137885,0.02439602,2665.0,2664.4,0.00096]
[1646522138283,0.02439602,2665.0,2664.7,0.0033161]
[1646522138487,0.0229206,2665.0,2664.7,0.0033161]
[1646522138687,1.5012393,2665.0,2664.7,0.0033161]
[1646522138893,11.47,2664.8,2664.7,0.0033161]
[1646522139090,14.97,2664.8,2663.8,0.00096]
[1646522139385,1.1037331,2664.1,2663.7,1.0]
[1646522139585,1.1037331,2664.1,2663.7,1.00096]
[1646522139785,1.1037331,2664.1,2663.7,1.0]
[1646522140641,12.5737331,2664.1,2663.8,0.00331474]
[1646522140843,14.97,2664.0,2663.8,0.00331474]
[1646522141040,3.5,2663.9,2663.8,0.00331474]
[1646522141240,14.97,2663.9,2663.8,0.00331474]
[1646522141647,15.3445,2663.9,2663.0,0.00096]
[1646522141843,16.44845144,2663.9,2663.7,0.00331477]
[1646522142142,14.97,2663.8,2663.7,0.00331477]
[1646522142741,14.97,2663.8,2662.6,0.00096]
[1646522143042,14.97,2663.8,2663.6,0.00331483]
[1646522143043,15.93354531,2663.8,2663.6,0.00331483]
[1646522143243,14.97,2663.7,2663.6,0.00331483]
[1646522144094,0.3745,2663.6,2662.6,0.00096]
[1646522144291,11.47,2663.4,2663.1,0.01326212]
[1646522144986,3.5,2663.5,2663.1,0.01326212]
[1646522145188,4.136,2663.8,2662.9,0.88600298]
[1646522145395,0.1877,2664.0,2663.1,0.00331529]
[1646522145593,0.02373908,2664.1,2663.1,0.91781529]
[1646522145793,0.02373908,2664.1,2663.2,0.00096]
[1646522145992,0.02373908,2664.1,2663.2,0.54096]
[1646522146192,1.10338581,2664.1,2663.2,0.54096]
[1646522146393,1.10338581,2664.1,2663.2,1.47966]
[1646522146593,1.10338581,2664.1,2663.5,0.00331503]
[1646522147594,1.10338581,2664.1,2663.3,0.00096]
[1646522148239,0.02373908,2664.1,2663.3,0.93963]
[1646522148441,0.02373908,2664.1,2663.3,1.85413]
[1646522148839,0.02373908,2664.1,2663.4,1.0]
[1646522149042,0.02424331,2664.6,2663.6,0.3745]
[1646522149347,0.02424331,2664.6,2664.4,3.15993649]
[1646522149540,0.02424331,2664.6,2664.5,3.5]
[1646522149739,0.02424331,2664.6,2664.4,3.15993649]
[1646522149939,0.02424331,2664.6,2664.4,0.93816]
[1646522150141,0.02424331,2664.6,2664.4,1.93816]
[1646522150343,0.02424331,2664.6,2664.4,0.93816]
[1646522150545,0.02424331,2664.6,2664.3,0.54]
[1646522151147,0.02424331,2664.6,2664.2,1.0]
[1646522151596,0.02424331,2664.6,2664.3,0.00354316]
[1646522152384,0.02424331,2664.6,2663.8,0.00096]
[1646522152585,0.02424331,2664.6,2664.3,0.00354316]
[1646522153287,11.49424331,2664.6,2664.3,0.00354316]
[1646522153687,0.3745,2664.5,2663.4,0.00096]
[1646522153891,11.47,2664.4,2664.3,0.00354316]
[1646522154087,12.52805407,2664.4,2664.3,0.00354316]
[1646522154892,12.90255407,2664.4,2663.3,0.00096]
[1646522155090,1.05805407,2664.4,2664.2,0.00354323]
[1646522155339,0.02424331,2664.6,2664.2,0.00354323]
[1646522155943,0.02424331,2664.6,2663.8,3.50096]
[1646522156143,0.02424331,2664.6,2663.8,4.50096]
[1646522156345,0.94282625,2664.6,2664.3,0.00342627]
[1646522157147,0.94282625,2664.6,2663.8,4.50096]
[1646522157344,0.94282625,2664.6,2663.8,1.00096]
[1646522157545,0.94282625,2664.6,2664.3,0.00342624]
[1646522158348,0.94282625,2664.6,2663.8,0.00096]
[1646522158752,0.94282625,2664.6,2664.3,0.00342624]
[1646522159592,0.94282625,2664.6,2663.8,0.00096]
[1646522159892,0.94282625,2664.6,2664.3,0.00330144]
[1646522160692,0.94282625,2664.6,2663.9,0.01320772]
[1646522160893,0.94282625,2664.6,2663.8,0.00096]
[1646522161193,0.94282625,2664.6,2664.3,0.00330144]
[1646522161993,0.94192296,2664.6,2663.8,0.00096]
[1646522162197,0.94192296,2664.6,2664.3,0.00330144]
[1646522163038,12.41192296,2664.6,2664.3,0.00330144]
[1646522163238,12.41192296,2664.6,2663.8,0.00096]
[1646522163239,3.5,2664.5,2663.8,0.00096]
[1646522163639,3.5,2664.5,2664.3,0.00330986]
[1646522163838,15.91192296,2664.6,2664.3,0.00330986]
[1646522164438,15.91192296,2664.6,2664.1,5.79709037]
[1646522164643,15.91192296,2664.6,2664.3,0.00330986]
[1646522165442,12.41192296,2664.6,2664.3,0.00330986]
[1646522165643,0.94192296,2664.6,2664.1,5.79709037]
[1646522165843,0.94192296,2664.6,2664.3,0.00330986]
[1646522166044,11.47,2664.5,2664.3,0.00330986]
[1646522166986,0.99209293,2664.2,2663.6,0.00096]
[1646522167187,0.99209293,2664.2,2663.2,3.51382894]
[1646522167188,0.99209293,2664.2,2663.9,0.01323929]
[1646522167985,0.99209293,2664.2,2663.4,0.93958]
[1646522168186,0.99209293,2664.2,2663.9,0.00330955]
[1646522168387,0.02334002,2664.6,2663.9,0.00330955]
[1646522168587,0.02334002,2664.6,2663.9,0.54426955]
[1646522169186,0.02334002,2664.6,2663.9,0.54096]
[1646522169389,2.8004,2664.7,2663.9,0.54096]
[1646522169587,1.12381243,2664.4,2664.1,0.00330942]
[1646522170439,1.12381243,2664.4,2663.8,0.00096]
[1646522170638,1.12381243,2664.4,2664.1,0.00330947]
[1646522171240,2.8004,2664.7,2664.1,0.00330947]
[1646522171539,2.8004,2664.7,2663.9,0.00096]
[1646522171947,2.8004,2664.7,2664.1,0.00330947]
[1646522172744,2.8004,2664.7,2664.0,6.79709037]
[1646522173142,2.8004,2664.7,2664.3,0.00330937]
[1646522173742,0.02040107,2664.4,2664.3,0.00330937]
[1646522173943,0.02040107,2664.4,2664.1,0.00096]
[1646522174192,0.02040107,2664.4,2664.0,6.81032955]
[1646522175195,0.02040107,2664.4,2664.0,5.79709037]
[1646522175399,0.02040107,2664.4,2664.1,0.00330949]
[1646522176499,0.02040107,2664.4,2664.0,5.79709037]
[1646522176996,0.02040107,2664.4,2664.1,0.00330946]
[1646522177697,0.02040107,2664.4,2664.0,5.79709037]
[1646522177942,0.02040107,2664.4,2664.1,0.00330946]
[1646522178740,0.02040107,2664.4,2664.1,3.69433909]
[1646522178941,0.02040107,2664.4,2664.2,9.11088848]
[1646522179141,0.02040107,2664.4,2664.3,4.55544424]
[1646522183092,0.01932198,2664.4,2664.2,0.00319835]
[1646522183688,0.01932198,2664.4,2663.8,0.00096]
[1646522183889,0.01932198,2664.4,2664.2,0.00321409]
[1646522183890,1.0100849,2664.4,2664.2,0.00321409]
[1646522184895,1.0100849,2664.4,2663.7,0.00096]
[1646522185097,0.99076292,2664.4,2664.2,0.00321783]
[1646522186044,0.93826631,2663.9,2663.7,0.00096]
[1646522186245,3.5,2663.8,2663.5,3.57080793]
[1646522186444,3.5,2663.8,2663.1,0.00096]
[1646522186845,3.5,2663.8,2662.9,0.00096]
[1646522187048,3.5,2663.8,2662.7,0.37546]
[1646522187247,3.5,2663.8,2662.8,0.00096]
[1646522187248,1.07317979,2663.4,2662.8,0.00096]
[1646522187649,1.07317979,2663.4,2663.3,0.00309091]
[1646522187848,1.1966,2663.9,2663.3,0.00309091]
[1646522188251,3.5,2663.8,2663.3,0.00309091]
[1646522188446,3.5,2663.8,2662.8,0.00096]
[1646522188649,3.5,2663.8,2663.5,0.00310211]
[1646522188854,0.93214562,2663.7,2663.5,0.00310211]
[1646522189104,0.93214562,2663.7,2663.5,0.00103373]
[1646522189701,0.93214562,2663.7,2662.8,0.00096]
[1646522191004,1.1966,2663.9,2662.8,2.11448774]
[1646522191204,1.1966,2663.9,2662.8,2.65448774]
[1646522191405,1.6164,2664.2,2663.2,0.3745]
[1646522191608,1.6164,2664.2,2663.3,0.91546]
[1646522191804,1.6164,2664.2,2663.4,0.54]
[1646522192207,1.15553629,2664.1,2663.6,0.93857]
[1646522192505,1.15553629,2664.1,2663.6,0.94189909]
[1646522192705,1.15553629,2664.1,2663.6,0.00332909]
[1646522193353,1.15553629,2664.1,2663.5,0.00096]
[1646522193544,1.15553629,2664.1,2663.7,0.00332902]
[1646522194545,1.15553629,2664.1,2663.5,0.00096]
[1646522194746,1.15553629,2664.1,2663.7,0.00354119]
[1646522195767,1.15553629,2664.1,2663.3,0.18856]
[1646522195950,1.15553629,2664.1,2663.7,0.00354119]
[1646522196797,1.15553629,2664.1,2663.3,0.54096]
[1646522197199,1.15553629,2664.1,2663.7,0.00343495]
[1646522198298,1.15553629,2664.1,2663.7,0.00343743]
[1646522198902,1.18193853,2664.1,2663.7,0.00343743]
[1646522199305,1.18193853,2664.1,2663.3,0.00096]
[1646522199604,1.18193853,2664.1,2663.7,0.00343743]
[1646522200461,1.18193853,2664.1,2663.3,0.00096]
[1646522200653,1.18193853,2664.1,2663.7,0.00330132]
[1646522201760,1.18193853,2664.1,2663.3,0.00096]
[1646522201967,1.18193853,2664.1,2663.7,0.00330132]
[1646522202958,1.18193853,2664.1,2663.3,0.00096]
[1646522203158,1.18193853,2664.1,2663.7,0.00330132]
[1646522204113,1.55643853,2664.1,2663.3,0.00096]
[1646522204315,1.18193853,2664.1,2663.7,0.00331042]
[1646522205314,1.55643853,2664.1,2663.3,0.00096]
[1646522205521,1.18193853,2664.1,2663.7,0.00331042]
[1646522206619,1.18193853,2664.1,2663.3,0.00096]
[1646522206620,1.55643853,2664.1,2663.3,0.00096]
[1646522206820,1.18193853,2664.1,2663.7,0.00331042]
[1646522207619,1.55643853,2664.1,2663.3,0.00096]
[1646522208045,1.55643853,2664.1,2663.7,0.00330981]
[1646522208046,1.18193853,2664.1,2663.7,0.00330981]
[1646522208851,1.55643853,2664.1,2663.3,0.00096]
[1646522209248,1.18193853,2664.1,2663.7,0.00308068]
[1646522209447,0.00306842,2664.0,2663.4,0.01232419]
[1646522210049,0.00306842,2664.0,2663.3,0.00096]
[1646522210246,0.00412126,2663.4,2663.3,0.00096]
[1646522210449,0.00412126,2663.4,2663.2,0.1875]
[1646522211455,0.00412126,2663.4,2663.2,0.1892221]
[1646522212407,0.00718968,2663.4,2663.2,0.1892221]
[1646522212608,0.00718968,2663.4,2663.2,0.1875]
[1646522212805,0.00718968,2663.4,2663.2,0.1892221]
[1646522213607,0.00718968,2663.4,2663.2,0.1875]
[1646522214011,0.00718968,2663.4,2663.2,0.19082828]
[1646522214208,0.03337051,2663.4,2663.2,0.19082828]
[1646522215009,0.03337051,2663.4,2663.2,0.1875]
[1646522215343,0.03337051,2663.4,2663.2,0.1908713]
[1646522215951,0.02924925,2663.4,2663.2,0.1908713]
[1646522216150,0.02924925,2663.4,2663.2,0.1875]
[1646522216352,0.02924925,2663.4,2663.2,0.1908713]
[1646522217253,4.3983,2664.2,2663.3,1.04]
[1646522217455,4.3983,2664.2,2663.4,0.00096]
[1646522217654,4.3983,2664.2,2663.6,1.87687]
[1646522217857,1.6164,2664.2,2663.7,0.54]
[1646522218054,1.1509,2664.3,2663.7,0.54]
[1646522219498,1.1509,2664.3,2663.7,1.47844]
[1646522219895,1.1509,2664.3,2663.7,1.47737937]
[1646522220698,4.4039,2664.8,2663.7,1.47737937]
[1646522220902,4.4039,2664.8,2663.8,2.95537811]
[1646522221099,4.4039,2664.8,2664.1,0.93832]
[1646522221499,4.4039,2664.8,2664.0,2.87658]
[1646522221703,4.4039,2664.8,2664.0,3.41658]
[1646522222105,4.4039,2664.8,2664.0,2.41658]
[1646522222303,4.4039,2664.8,2664.0,3.41658]
[1646522222503,4.4039,2664.8,2664.0,2.41658]
[1646522222702,4.4039,2664.8,2664.0,3.41658]
[1646522222943,1.00269761,2664.6,2664.0,0.54]
[1646522223143,1.00269761,2664.6,2663.9,0.01327064]
[1646522223345,3.5,2664.5,2663.6,0.00096]
[1646522223551,3.5,2664.5,2663.6,0.00427803]
[1646522223552,3.8745,2664.5,2663.6,0.00427803]
[1646522223750,3.8745,2664.5,2663.9,0.01327064]
[1646522223751,14.97,2664.5,2663.9,0.01327064]
[1646522224050,14.97,2664.5,2663.9,0.0122094]